Cogmind - Beta 15 @@@ ROGUE MODE // 2025.07.27 @ 00:01:28 Player: VR-DUX Result: Self-destructed Performance ------------- Evolutions (5) 2500 Regions Visited (16) 3200 Robots Destroyed (118) 590 Value Destroyed (2194) 2194 Prototype IDs (219) 4380 Alien Tech Used (0) 0 Bonus (4566) 4566 TOTAL SCORE: 17430 Bonus ------- High Alert Combat Kills 17 Follower Combat Kills 449 Registered with UFD 300 Met Optimus in HQ 500 Met Data Miner 300 Used Data Conduit 3000 Cogmind --------- Core Integrity 844/1000 Matter 294/300 Energy 99/100 System Corruption 7% Temperature Cool (2) Movement Hovering (60) Location -5/Factory Parts ------- > --- POWER (1) -------- (None) > --- PROPULSION (6) --- Antigrav System > --- UTILITY (8) ------ Experimental Signal Interpreter Hacking Suite Improved Hacking Suite Improved Hacking Suite Deep Network Scanner Improved System Shield > --- WEAPON (2) ------- Heavy Mace > --- INVENTORY (5) ---- Medium Storage Unit Large Storage Unit High-capacity Storage Unit System Shield Mini Grenade Launcher Peak State ------------ > --- POWER ------------ Nuclear Core > --- PROPULSION ------- Improved Flight Unit Improved Flight Unit Improved Diametric Drive > --- UTILITY ---------- Experimental Signal Interpreter Improved Melee Analysis Suite Hacking Suite Improved Hacking Suite Improved Hacking Suite Deep Network Scanner Improved System Shield Quantum Router > --- WEAPON ----------- Heavy Mace > --- INVENTORY -------- Medium Storage Unit Large Storage Unit High-capacity Storage Unit System Shield Mini Grenade Launcher [Rating: 71] Favorites ----------- Power Ion Engine Engine Ion Engine Power Core Nuclear Core Propulsion Armored Treads Treads Armored Treads Leg Aluminum Leg Wheel Compact Wheel Hover Unit Antigrav System Flight Unit Improved Flight Unit Utility Hardened Light Armor Plating Device Structural Scanner Storage High-capacity Storage Unit Processor Experimental Signal Interpreter Hackware Improved System Shield Protection Hardened Light Armor Plating Weapon Improved Light Cannon Energy Gun Small Laser Ballistic Gun Assault Rifle Ballistic Cannon Improved Light Cannon Launcher Mini Grenade Launcher Impact Weapon Heavy Mace Slashing Weapon Katana Piercing Weapon Heavy Pick Build | -11 -10 -10 -9 -9 -9 -9 -6 -6 -6 -6 -6 -6 -5 -5 -5 -5 ------- Run | Yrd Mat Min Mat Sto Rec Scr Fac Was Fac Low Low Dat Pro Fac Was Fac Slots Evolved 10 | . . . 2 . . . 6 . . . . . . 2 . . Power . | . . . . . . . . . . . . . . . . . Propulsion 4 | . . . 1 . . . 3 . . . . . . . . . Utility 6 | . . . 1 . . . 3 . . . . . . 2 . . Weapon . | . . . . . . . . . . . . . . . . . Parts Attached 100 | 3 17 1 24 14 7 3 8 1 8 6 . . 1 5 1 1 Power 10 | . 1 . 3 2 1 . . 1 1 1 . . . . . . Engine 8 | . 1 . 3 2 1 . . . 1 . . . . . . . Core 2 | . . . . . . . . 1 . 1 . . . . . . Reactor . | . . . . . . . . . . . . . . . . . Propulsion 32 | 2 6 . 11 4 2 . 5 . . . . . . . 1 1 Treads 16 | 1 4 . 9 2 . . . . . . . . . . . . Leg . | . . . . . . . . . . . . . . . . . Wheel 8 | 1 2 . 2 1 2 . . . . . . . . . . . Hover 1 | . . . . . . . . . . . . . . . . 1 Flight 7 | . . . . 1 . . 5 . . . . . . . 1 . Utility 34 | 1 6 1 3 3 2 1 3 . 5 4 . . 1 4 . . Device 9 | 1 2 . . . 1 . 1 . 2 2 . . . . . . Storage 3 | . 2 1 . . . . . . . . . . . . . . Processor 2 | . . . . . . . 1 . . . . . . 1 . . Hackware 8 | . . . . . . . 1 . 2 2 . . . 3 . . Protection 12 | . 2 . 3 3 1 1 . . 1 . . . 1 . . . Artifact . | . . . . . . . . . . . . . . . . . Weapon 24 | . 4 . 7 5 2 2 . . 2 1 . . . 1 . . Energy Gun 1 | . 1 . . . . . . . . . . . . . . . Energy Cannon . | . . . . . . . . . . . . . . . . . Ballistic Gun 7 | . 2 . 3 . 2 . . . . . . . . . . . Ballistic Cannon 6 | . . . 2 4 . . . . . . . . . . . . Launcher 4 | . 1 . 2 . . 1 . . . . . . . . . . Special Weapon . | . . . . . . . . . . . . . . . . . Impact Weapon 1 | . . . . . . . . . . . . . . 1 . . Slashing Weapon 3 | . . . . 1 . 1 . . 1 . . . . . . . Piercing Weapon 2 | . . . . . . . . . 1 1 . . . . . . Special Melee Weapon . | . . . . . . . . . . . . . . . . . Unidentified Prototypes 3 | . . . . 1 . . . . . . . . . 2 . . Parts Lost 24 | . 1 . 1 2 . . . . 10 . . 4 1 . 2 3 Power 1 | . . . . . . . . . 1 . . . . . . . Propulsion 8 | . . . 1 1 . . . . 2 . . 1 . . 2 1 Utility 13 | . 1 . . 1 . . . . 7 . . 1 1 . . 2 Weapon 2 | . . . . . . . . . . . . 2 . . . . Highest Loss Streak 5 | . 1 . 1 1 . . . . 5 . . 4 1 . 2 3 To Critical Strikes 2 | . . . . 1 . . . . . . . . . . 1 . Average Backups 16 | 5 12 16 19 19 19 19 8 8 8 4 4 4 4 3 5 5 Power 1 | 1 1 1 . 1 1 1 1 1 . . . . . . . . Propulsion 5 | 2 4 6 3 7 9 8 . . . . . . . . . . Utility 5 | . 4 6 7 7 5 5 3 3 4 2 3 3 4 3 4 4 Weapon 3 | 1 1 3 7 3 3 3 2 3 3 2 1 1 . . 1 1 Tool/Special . | . . . . . . . . . . . . . . . . . Unused Backups 27 | . 3 . 8 4 . 4 1 . 2 2 . . . . . 3 Power 3 | . 1 . 1 . . 1 . . . . . . . . . . Propulsion 5 | . . . 2 1 . 2 . . . . . . . . . . Utility 12 | . 2 . 2 1 . 1 1 . 1 1 . . . . . 3 Weapon 6 | . . . 3 2 . . . . . 1 . . . . . . Tool/Special 1 | . . . . . . . . . 1 . . . . . . . Average Slot Usage (%) 92 | . 100 100 98 97 99 88 90 86 83 67 80 77 56 67 68 59 Engine 9 | . 14 14 11 10 11 11 6 3 1 5 . . . . . . Treads 18 | . 20 14 23 21 22 21 . . . . . . . . . . Wheel 8 | . 7 14 9 10 10 11 . . . . . . . . . . Flight 3 | . . . . . . . 37 33 32 20 20 20 13 11 11 4 Device 7 | . 7 14 11 2 1 11 13 13 11 6 13 11 3 . . . Storage 10 | . 14 14 11 11 11 11 6 6 6 . . . . . . . Hackware 2 | . . . . . . . 5 6 6 19 20 20 20 33 35 35 Protection 11 | . 6 . 9 19 20 10 5 6 4 . . . 1 1 . . Ballistic Gun 5 | . 26 28 6 . 8 . . . . . . . . . . . Ballistic Cannon 7 | . . . 15 20 12 . . . . . . . . . . . Slashing Weapon 3 | . . . . . . 11 6 6 7 . . . . . . . Peak Build Rating 71 | 7 8 9 21 21 22 25 43 39 50 50 50 51 37 63 71 62 Average Rating 21 | 6 7 8 15 19 19 22 40 38 42 41 50 48 34 60 63 57 On Entrance 30 | 6 7 8 9 19 19 20 24 39 38 35 50 50 33 37 62 56 Naked Turns . | . . . . . . . . . . . . . . . . . Heaviest Build 65 | 14 30 50 62 65 64 52 21 22 27 15 15 15 10 10 10 3 Greatest Support 60 | 20 40 16 60 60 60 20 28 24 24 15 15 15 10 10 10 11 Greatest Overweight (x) 19 | . 2 3 6 19 6 3 . . 8 . . . . 3 . . Average Overweight (x) 1 | . . 2 3 2 4 2 . . . . . . . . . . Largest Inventory Capacity 20 | 8 15 20 20 20 20 20 20 10 10 10 5 5 5 5 5 5 Average Capacity 17 | 8 14 18 20 20 20 20 10 10 10 5 5 5 5 5 5 5 Most Carried 20 | 6 15 18 20 20 20 20 19 10 10 9 5 5 5 5 5 5 Average Carried 17 | 5 12 16 19 19 19 19 10 10 9 5 5 4 4 3 5 5 Final Capacity 20 | 8 15 20 20 20 20 20 10 10 10 5 5 5 5 5 5 5 Final Carried 20 | 6 15 18 20 19 20 20 10 10 10 5 5 5 5 5 5 5 Class Distribution -------------------- 47% | Mutant 37% | Scavenger-Mutant 5% | Scout 3% | Hacker-Mutant 3% | Wizard-Mutant Dominant Class ---------------- Mutant | -10/Materials Mutant | -10/Mines Scavenger-Mutant | -9/Materials Mutant | -9/Storage Mutant | -9/Recycling Scavenger-Mutant | -9/Scraptown Scout | -6/Factory Scout | -6/Waste Scout | -6/Factory Hacker-Mutant | -6/Lower Caves Hacker-Mutant | -6/Lower Caves Hacker-Mutant | -6/Data Miner Hacker-Mutant | -5/Proximity Caves Wizard-Mutant | -5/Factory Wizard-Mutant | -5/Waste Wizard-Mutant | -5/Factory Resources | -11 -10 -10 -9 -9 -9 -9 -6 -6 -6 -6 -6 -6 -5 -5 -5 -5 ----------- Run | Yrd Mat Min Mat Sto Rec Scr Fac Was Fac Low Low Dat Pro Fac Was Fac Matter Collected 3583 | 232 695 51 902 827 322 30 180 . 127 112 . . 15 90 . . Remotely 187 | . 187 . . . . . . . . . . . . . . . Salvage Created 3942 | 106 543 30 860 963 555 . 15 . 409 . . 29 . 432 . . Parts 233 | 3 41 3 67 68 26 . 1 . 18 . . 3 . 3 . . Haulers Intercepted 14 | . 2 . 4 6 . . . . 1 . . . . 1 . . Recyclers Shooed 4 | 1 . . . 1 1 . . . . . . . . 1 . . Parts Field Recycled . | . . . . . . . . . . . . . . . . . Retrieved Matter . | . . . . . . . . . . . . . . . . . Parts Self-Destructed . | . . . . . . . . . . . . . . . . . Prevented . | . . . . . . . . . . . . . . . . . Kills | -11 -10 -10 -9 -9 -9 -9 -6 -6 -6 -6 -6 -6 -5 -5 -5 -5 ------- Run | Yrd Mat Min Mat Sto Rec Scr Fac Was Fac Low Low Dat Pro Fac Was Fac Combat Hostiles Destroyed 49 | . 9 . 20 17 3 . . . . . . . . . . . Guns 12 | . 7 . 4 . 1 . . . . . . . . . . . Cannons 27 | . . . 8 17 2 . . . . . . . . . . . AOE 10 | . 2 . 8 . . . . . . . . . . . . . Classes Destroyed 12 | 2 7 . 2 1 . . . . . . . . . . . . Worker 10 | . 2 . 4 1 . . 1 . 1 . . . . 1 . . Builder 14 | . 1 1 5 1 3 . . . 1 . . . . 2 . . Tunneler 3 | 1 1 . . . . . . . 1 . . . . . . . Hauler 14 | . 2 . 4 6 . . . . 1 . . . . 1 . . Recycler 13 | 1 1 . . 2 5 . . . 2 . . . . 2 . . Operator 6 | . 1 . 2 1 . . . . 2 . . . . . . . Watcher 7 | . 3 . 3 1 . . . . . . . . . . . . Swarmer 10 | . 3 . 6 1 . . . . . . . . . . . . Grunt 26 | . 6 . 7 13 . . . . . . . . . . . . Brawler 1 | . . . . 1 . . . . . . . . . . . . Duelist 1 | . . . 1 . . . . . . . . . . . . . Sentry 12 | . . . 6 3 3 . . . . . . . . . . . Best Kill Streak 8 | 2 3 1 8 4 3 . 1 . 2 . . 1 . 4 . . Combat Bots Only 6 | . 3 . 6 3 1 . . . . . . . . . . . Max Kills in Single Turn 2 | 1 1 1 2 2 2 . 1 . 1 . . 1 . 1 . . Gunslinging . | . . . . . . . . . . . . . . . . . Exploded 2 | . 1 . 2 . . . . . . . . . . . . . Melee . | . . . . . . . . . . . . . . . . . Uniques/NPCs Destroyed 1 | . . . . . . . . . . . . 1 . . . . Data Miner (-6/Data Miner) Combat | -11 -10 -10 -9 -9 -9 -9 -6 -6 -6 -6 -6 -6 -5 -5 -5 -5 -------- Run | Yrd Mat Min Mat Sto Rec Scr Fac Was Fac Low Low Dat Pro Fac Was Fac Hostile Shots Fired 467 | . 59 . 96 81 16 . 14 . 105 19 3 14 19 21 2 18 Missed 173 | . 13 . 26 23 5 . 11 . 40 10 1 8 10 15 1 10 Hits 294 | . 46 . 70 58 11 . 3 . 65 9 2 6 9 6 1 8 Melee 6 | . . . 1 4 . . . . . . . . . . 1 . Projectile 288 | . 46 . 69 54 11 . 3 . 65 9 2 6 9 6 . 8 Critical Strikes 17 | . . . 3 6 1 . . . 5 . . . . . 1 1 Damage Taken 4527 | . 592 . 913 902 174 . 32 . 968 136 40 273 188 133 41 135 Core 1133 | . 96 . 107 51 15 . 15 . 337 95 40 142 79 92 29 35 Absorbed by Shields . | . . . . . . . . . . . . . . . . . Redirected to Shielding 141 | . 15 . 16 . . . . . 102 . . . . 8 . . Regen/Repaired (Parts) 273 | . . . . 253 . . . . 20 . . . . . . . Core Remaining (%) 58 | 100 . 61 . . . 56 . . . . . . 16 . . . Volleys Fired 255 | 4 66 1 84 72 26 . . . . . . . 1 1 . . Largest 2 | 2 2 2 2 2 2 . . . . . . . 1 1 . . Hottest 66 | 60 60 40 63 66 66 . . . . . . . 30 30 . . Shots Fired 478 | 8 119 2 158 138 51 . . . . . . . 1 1 . . Gun 176 | 8 106 2 41 . 19 . . . . . . . . . . . Cannon 277 | . . . 107 138 32 . . . . . . . . . . . Launcher 25 | . 13 . 10 . . . . . . . . . 1 1 . . Special . | . . . . . . . . . . . . . . . . . Kinetic 448 | 4 105 2 148 138 51 . . . . . . . . . . . Thermal 5 | 4 1 . . . . . . . . . . . . . . . Explosive 25 | . 13 . 10 . . . . . . . . . 1 1 . . Electromagnetic . | . . . . . . . . . . . . . . . . . Robot Hit Streak 13 | 4 7 3 9 13 10 . . . . . . . . . . . Robot Miss Streak 4 | 1 4 . 3 3 3 . . . . . . . 1 . . . Penetration Max . | . . . . . . . . . . . . . . . . . Secondary Targets 2 | . 2 . . . . . . . . . . . . . . . Max Gunslinging Chain 1 | . 1 . . . . . . . . . . . . . . . Shots Hit Robots 278 | 6 56 2 78 81 32 . 1 . 13 . . 1 . 8 . . Core Hits 134 | 3 32 1 44 34 13 . 1 . 5 . . 1 . . . . Critical Kills . | . . . . . . . . . . . . . . . . . Critical Parts Destroyed 2 | . 1 . . . 1 . . . . . . . . . . . Critical Strikes 17 | . 1 . 7 4 4 . . . 1 . . . . . . . Destroy 2 | . 1 . . . 1 . . . . . . . . . . . Blast 14 | . . . 7 4 3 . . . . . . . . . . . Sever 1 | . . . . . . . . . 1 . . . . . . . Melee Attacks 65 | . . . . 1 . . 11 . 33 . . 7 . 13 . . Impact 13 | . . . . . . . . . . . . . . 13 . . Slashing 45 | . . . . 1 . . 11 . 33 . . . . . . . Piercing 7 | . . . . . . . . . . . . 7 . . . . Sneak Attacks 16 | . . . . . . . 1 . 8 . . 1 . 6 . . Combat Hostiles . | . . . . . . . . . . . . . . . . . Follow-up Attacks . | . . . . . . . . . . . . . . . . . Damage Inflicted 7840 | 65 1082 23 2559 1885 692 . 71 . 754 . . 75 . 634 . . Guns 1427 | 65 704 23 395 . 240 . . . . . . . . . . . Cannons 3386 | . . . 1134 1831 421 . . . . . . . . . . . Explosions 1462 | . 378 . 1030 54 . . . . . . . . . . . . Melee 1534 | . . . . . . . 71 . 754 . . 75 . 634 . . Ramming 31 | . . . . . 31 . . . . . . . . . . . Kinetic 4781 | 33 704 23 1529 1831 661 . . . . . . . . . . . Thermal 32 | 32 . . . . . . . . . . . . . . . . Explosive 1431 | . 347 . 1030 54 . . . . . . . . . . . . Electromagnetic 31 | . 31 . . . . . . . . . . . . . . . Impact 634 | . . . . . . . . . . . . . . 634 . . Slashing 825 | . . . . . . . 71 . 754 . . . . . . . Piercing 75 | . . . . . . . . . . . . 75 . . . . Highest Corruption 19 | . . . . 1 1 . . 8 19 19 19 19 19 . 7 7 Average Corruption 5 | . . . . 1 1 . . 8 9 19 19 19 19 . 7 7 Corruption Purged . | . . . . . . . . . . . . . . . . . Corruption Blocked . | . . . . . . . . . . . . . . . . . Effects 54 | . . . . . 9 . . 1 21 6 3 2 11 . 1 . Message Errors 15 | . . . . . 2 . . . 7 2 1 . 3 . . . Matter Fused 13 | . . . . . 2 . . . 6 1 . . 3 . 1 . Heat Flow Errors 4 | . . . . . 1 . . . 2 . . . 1 . . . Energy Discharges 3 | . . . . . . . . . 1 . 1 1 . . . . Parts Rejected 3 | . . . . . . . . 1 2 . . . . . . . Data Loss (minor) 5 | . . . . . 1 . . . . 2 . 1 1 . . . Data Loss (major) 4 | . . . . . 2 . . . 2 . . . . . . . Alerts 1 | . . . . . . . . . 1 . . . . . . . Misdirections 5 | . . . . . . . . . . 1 1 . 3 . . . Weapon Failures 1 | . . . . . 1 . . . . . . . . . . . Overload Shots . | . . . . . . . . . . . . . . . . . Overflow Damage 630 | . . . 106 34 . . . . 182 . . . . 308 . . Projectiles 65 | . . . 31 34 . . . . . . . . . . . . Explosions 75 | . . . 75 . . . . . . . . . . . . . Melee 490 | . . . . . . . . . 182 . . . . 308 . . Knockbacks 17 | . . . 6 6 2 . . . . . . . . 3 . . Impact 3 | . . . . . . . . . . . . . . 3 . . Kinetic 13 | . . . 6 5 2 . . . . . . . . . . . Secondary 1 | . . . . 1 . . . . . . . . . . . . Self-Inflicted Damage 301 | . 112 . 68 69 13 . . . . . . . . 39 . . Shots 7 | . 3 . 2 1 . . . . . . . . . 1 . . Rammed 2 | . . . . . 2 . . . . . . . . . . . Targets Rammed 2 | . . . . . 2 . . . . . . . . . . . Kicked . | . . . . . . . . . . . . . . . . . Crushed . | . . . . . . . . . . . . . . . . . Highest Temperature 306 | . 10 . 150 306 223 . 36 3 178 . . . 116 . . . Average Temperature 47 | . 4 . 22 68 53 . 4 1 74 . . . 59 . . . Received Heat Transfer 1179 | . 162 . 375 405 63 . 6 . 60 18 18 . 18 . . 54 Effects 5 | . . . . 4 1 . . . . . . . . . . . Energy Bleed 2 | . . . . 1 1 . . . . . . . . . . . Interference 3 | . . . . 3 . . . . . . . . . . . . Siege Activations . | . . . . . . . . . . . . . . . . . Martial Activations . | . . . . . . . . . . . . . . . . . Shielding Activations . | . . . . . . . . . . . . . . . . . Robots Disrupted . | . . . . . . . . . . . . . . . . . Combat Hostiles . | . . . . . . . . . . . . . . . . . Robots Corrupted 4 | . . . . . . . . . . . . . . 4 . . Combat Hostiles . | . . . . . . . . . . . . . . . . . Parts Fried 10 | . . . . . . . . . . . . . . 10 . . Impact Corruptions 11 | . . . . . . . . . . . . . . 11 . . Robots Melted . | . . . . . . . . . . . . . . . . . Combat Hostiles . | . . . . . . . . . . . . . . . . . Parts Melted . | . . . . . . . . . . . . . . . . . Heat Transferred 75 | 75 . . . . . . . . . . . . . . . . Parts Sabotaged . | . . . . . . . . . . . . . . . . . Parts Stolen . | . . . . . . . . . . . . . . . . . Parts Stripped . | . . . . . . . . . . . . . . . . . Power Chain Reactions . | . . . . . . . . . . . . . . . . . Alert | -11 -10 -10 -9 -9 -9 -9 -6 -6 -6 -6 -6 -6 -5 -5 -5 -5 ------- Run | Yrd Mat Min Mat Sto Rec Scr Fac Was Fac Low Low Dat Pro Fac Was Fac Maximum Alert Level 3 | . 1 . 1 2 . . . . 1 . . . . 3 1 1 Low Security (%) 66 | 100 97 100 30 60 100 . 100 100 60 . . . . . . 76 Level 1 29 | . 2 . 69 33 . . . . 39 . . . . . 100 23 Level 2 . | . . . . 5 . . . . . . . . . . . . Level 3 2 | . . . . . . . . . . . . . . 100 . . Level 4 . | . . . . . . . . . . . . . . . . . Level 5 . | . . . . . . . . . . . . . . . . . High Security . | . . . . . . . . . . . . . . . . . Max Security . | . . . . . . . . . . . . . . . . . Peak Influence 827 | 5 212 42 351 431 165 . 62 16 293 . . . . 827 280 220 Initial 813 | . . 42 . 139 165 . . 16 4 . . . . 813 275 175 Average 159 | 2 90 9 222 230 26 . 15 11 164 . . . . 804 265 181 Influence Increases 4283 | 10 458 5 967 947 108 . 105 . 504 120 15 20 120 814 15 75 Destroy 0b10 Robot/C 1300 | . 180 . 540 500 60 . . . . . . 20 . . . . Destroy 0b10 Robot/NC 345 | 10 55 5 100 60 40 . 5 . 40 . . . . 30 . . Destroy Leader 366 | . 60 . 158 144 . . . . 2 . . . . 2 . . Allied During Kill 147 | . . . 46 101 . . . . . . . . . . . . Successful Hack 94 | . 25 . 14 32 5 . . . 10 . . . . 8 . . Disable Machine 135 | . 45 . 45 30 . . . . 15 . . . . . . . Destroy Structure 201 | . 78 . 49 20 3 . 10 . 17 . . . . 24 . . Advance Influence 750 | . . . . . . . . . . . . . . 750 . . Partial Spotted 120 | . . . . . . . 30 . 75 . . . . . 15 . Lose Combat Pursuer 825 | . 15 . 15 60 . . 60 . 345 120 15 . 120 . . 75 Influence Decreases 4083 | 10 349 114 636 854 532 . 57 42 342 123 62 138 20 127 552 125 Entered New Map 1389 | . . 67 . 192 259 . . 32 2 63 32 118 . 37 512 75 Time Decay 2279 | 10 349 47 571 482 273 . 57 10 230 60 30 10 20 90 20 20 Lost Part 190 | . . . 10 20 . . . . 100 . . 10 . . 20 30 Lost Ally 225 | . . . 55 160 . . . . 10 . . . . . . . Squads Dispatched 25 | . 2 . 2 9 . . 1 . 6 . . . 1 3 . 1 Investigation 8 | . . . 1 3 . . 1 . 2 . . . . . . 1 Extermination 2 | . . . . . . . . . 2 . . . . . . . Reinforcement 9 | . 2 . 1 2 . . . . 2 . . . . 2 . . Assault 2 | . . . . 1 . . . . . . . . 1 . . . Garrison 4 | . . . . 3 . . . . . . . . . 1 . . Intercept . | . . . . . . . . . . . . . . . . . Searches Triggered . | . . . . . . . . . . . . . . . . . Construction Impeded 1 | . . . 1 . . . . . . . . . . . . . Haulers Reinforced 1 | . . . . . . . . . 1 . . . . . . . Active Scanning Responses . | . . . . . . . . . . . . . . . . . Cargo Convoy Interrupts . | . . . . . . . . . . . . . . . . . Stealth | -11 -10 -10 -9 -9 -9 -9 -6 -6 -6 -6 -6 -6 -5 -5 -5 -5 --------- Run | Yrd Mat Min Mat Sto Rec Scr Fac Was Fac Low Low Dat Pro Fac Was Fac Distress Signals 14 | . 1 . 4 3 . . 2 . 3 . . . . . . 1 Communications Jammed . | . . . . . . . . . . . . . . . . . Distress Signals . | . . . . . . . . . . . . . . . . . Times Spotted 206 | . 19 . 41 36 2 . 7 6 28 8 6 4 21 9 6 13 Peak Tracking Total 13 | . 4 . 8 5 1 . 6 6 10 4 6 4 13 8 6 9 Tactical Retreats 22 | . 1 . 1 3 . . 1 . 9 2 1 . 3 . . 1 Traps | -11 -10 -10 -9 -9 -9 -9 -6 -6 -6 -6 -6 -6 -5 -5 -5 -5 ------- Run | Yrd Mat Min Mat Sto Rec Scr Fac Was Fac Low Low Dat Pro Fac Was Fac Traps Triggered 11 | . . . 1 7 . . 1 . 1 . . . . 1 . . Indirectly . | . . . . . . . . . . . . . . . . . Trap Hack Attempts . | . . . . . . . . . . . . . . . . . Triggered . | . . . . . . . . . . . . . . . . . Disarmed . | . . . . . . . . . . . . . . . . . Reprogrammed . | . . . . . . . . . . . . . . . . . Reused . | . . . . . . . . . . . . . . . . . Traps Extracted . | . . . . . . . . . . . . . . . . . Installed . | . . . . . . . . . . . . . . . . . Triggered . | . . . . . . . . . . . . . . . . . Machines | -11 -10 -10 -9 -9 -9 -9 -6 -6 -6 -6 -6 -6 -5 -5 -5 -5 ---------- Run | Yrd Mat Min Mat Sto Rec Scr Fac Was Fac Low Low Dat Pro Fac Was Fac Machines Disabled 9 | . 3 . 3 2 . . . . 1 . . . . . . . Max in Single Turn 1 | . 1 . 1 1 . . . . 1 . . . . . . . Machines Repaired . | . . . . . . . . . . . . . . . . . Machines Dismantled . | . . . . . . . . . . . . . . . . . Machines Sabotaged . | . . . . . . . . . . . . . . . . . Overloaded Fab Kills . | . . . . . . . . . . . . . . . . . Hacking | -11 -10 -10 -9 -9 -9 -9 -6 -6 -6 -6 -6 -6 -5 -5 -5 -5 --------- Run | Yrd Mat Min Mat Sto Rec Scr Fac Was Fac Low Low Dat Pro Fac Was Fac Machines Accessed 68 | . 7 . 10 10 7 7 6 . 9 . . 4 . 7 . 1 Terminals 36 | . 5 . 7 6 3 . 1 . 8 . . . . 6 . . Fabricators 1 | . . . . . . . . . . . . . . . . 1 Repair Stations 6 | . 1 . 1 1 . . 2 . 1 . . . . . . . Recycling Units 9 | . 1 . 1 2 2 . 2 . . . . . . 1 . . Scanalyzers 1 | . . . 1 . . . . . . . . . . . . . Garrison Access 2 | . . . . 1 . . 1 . . . . . . . . . Total Hacks 257 | . 17 . 20 26 39 53 11 . 28 . . 29 . 32 . 2 Successful 173 | . 7 . 11 13 29 53 3 . 5 . . 29 . 21 . 2 Failed 84 | . 10 . 9 13 10 . 8 . 23 . . . . 11 . . Catastrophic 15 | . . . 1 4 2 . 1 . 7 . . . . . . . Database Lockouts . | . . . . . . . . . . . . . . . . . Manual 66 | . 3 . 7 7 3 . 4 . 19 . . . . 23 . . Terminals 110 | . 11 . 14 17 10 . 2 . 26 . . . . 30 . . Fabricators 2 | . . . . . . . . . . . . . . . . 2 Repair Stations 13 | . 3 . 2 2 . . 4 . 2 . . . . . . . Recycling Units 19 | . 3 . 1 5 5 . 3 . . . . . . 2 . . Scanalyzers 3 | . . . 3 . . . . . . . . . . . . . Garrison Access 4 | . . . . 2 . . 2 . . . . . . . . . Terminal Hacks 147 | . 5 . 7 7 28 53 . . 2 . . 29 . 16 . . Record 82 | . . . 1 . 24 46 . . . . . 11 . . . . Part Schematic 11 | . . . . . . . . . . . . 11 . . . . Robot Schematic 4 | . . . . . . . . . . . . 4 . . . . Robot Analysis 12 | . 4 . 1 . . 7 . . . . . . . . . . Prototype ID Bank 3 | . . . . . . . . . . . . 3 . . . . Open Door 4 | . . . . 3 . . . . . . . . . 1 . . Open DSF 1 | . . . . . . . . . . . . . . 1 . . Branch Access Points 4 | . 1 . . 1 . . . . 1 . . . . 1 . . Locate Traps 7 | . . . 2 1 2 . . . . . . . . 2 . . Recall Investigation 2 | . . . . . . . . . 1 . . . . 1 . . Recall Extermination 1 | . . . . . . . . . . . . . . 1 . . Recall Reinforcements 1 | . . . . . . . . . . . . . . 1 . . Recall Assault 1 | . . . . . . . . . . . . . . 1 . . Hauler Manifests 6 | . . . 2 2 1 . . . . . . . . 1 . . Registered Prototypes 1 | . . . . . . . . . . . . . . 1 . . Zone Layout 7 | . . . 1 . 1 . . . . . . . . 5 . . Fabricator Hacks 2 | . . . . . . . . . . . . . . . . 2 Load Schematic 1 | . . . . . . . . . . . . . . . . 1 Build 1 | . . . . . . . . . . . . . . . . 1 Repair Station Hacks 8 | . 1 . 1 2 . . 2 . 2 . . . . . . . Scan Component 5 | . 1 . 1 1 . . 1 . 1 . . . . . . . Repair 3 | . . . . 1 . . 1 . 1 . . . . . . . Recycling Unit Hacks 7 | . 1 . 1 3 1 . . . . . . . . 1 . . Retrieve Components 7 | . 1 . 1 3 1 . . . . . . . . 1 . . Scanalyzer 2 | . . . 2 . . . . . . . . . . . . . Insert Component 1 | . . . 1 . . . . . . . . . . . . . Analyze 1 | . . . 1 . . . . . . . . . . . . . Garrison Access Hacks . | . . . . . . . . . . . . . . . . . Unauthorized Hacks 7 | . . . . 1 . . 1 . 1 . . . . 4 . . Terminals 4 | . . . . . . . . . 1 . . . . 3 . . Assimilate 2 | . . . . . . . . . 1 . . . . 1 . . Botnet 2 | . . . . . . . . . . . . . . 2 . . Fabricators . | . . . . . . . . . . . . . . . . . Repair Stations . | . . . . . . . . . . . . . . . . . Recycling Units 3 | . . . . 1 . . 1 . . . . . . 1 . . Reject 3 | . . . . 1 . . 1 . . . . . . 1 . . Scanalyzers . | . . . . . . . . . . . . . . . . . Garrison Access . | . . . . . . . . . . . . . . . . . Data Cores Recovered 2 | . . . 1 . . . . . 1 . . . . . . . Used . | . . . . . . . . . . . . . . . . . Hacking Detections 44 | . 6 . 8 7 4 . 5 . 9 . . . . 4 . 1 Full Trace Events 8 | . . . . 3 1 . 1 . 2 . . . . . . 1 Feedback Events 1 | . . . . . . . . . 1 . . . . . . . Corruption 1 | . . . . . . . . . 1 . . . . . . . Feedback Blocked . | . . . . . . . . . . . . . . . . . Robot Schematics Acquired 4 | . . . . . . . . . . . . 4 . . . . Robots Built . | . . . . . . . . . . . . . . . . . Authchips . | . . . . . . . . . . . . . . . . . Time . | . . . . . . . . . . . . . . . . . Total Robot Build Rating . | . . . . . . . . . . . . . . . . . Part Schematics Acquired 12 | . . . 1 . . . . . . . . 11 . . . . Parts Built . | . . . . . . . . . . . . . . . . . Authchips . | . . . . . . . . . . . . . . . . . Time 84 | . . . . . . . . . . . . . . . . 84 Total Part Build Rating . | . . . . . . . . . . . . . . . . . Parts Repaired 2 | . . . . 1 . . . . 1 . . . . . . . Time 102 | . . . . 38 . . 32 . 32 . . . . . . . Parts Recycled . | . . . . . . . . . . . . . . . . . Recycled Matter . | . . . . . . . . . . . . . . . . . Retrieved Matter . | . . . . . . . . . . . . . . . . . Retrieved Components 28 | . 9 . 7 2 9 . . . . . . . . 1 . . Parts Scanalyzed 1 | . . . 1 . . . . . . . . . . . . . Part Schematics Acquired 1 | . . . 1 . . . . . . . . . . . . . Parts Damaged . | . . . . . . . . . . . . . . . . . Bothacking | -11 -10 -10 -9 -9 -9 -9 -6 -6 -6 -6 -6 -6 -5 -5 -5 -5 ------------ Run | Yrd Mat Min Mat Sto Rec Scr Fac Was Fac Low Low Dat Pro Fac Was Fac Used RIF Installer . | . . . . . . . . . . . . . . . . . Robots Hacked . | . . . . . . . . . . . . . . . . . Non-combat . | . . . . . . . . . . . . . . . . . Combat . | . . . . . . . . . . . . . . . . . Robot Hacks Applied . | . . . . . . . . . . . . . . . . . Relay Couplers Released . | . . . . . . . . . . . . . . . . . Fabnet Peak Effective % . | . . . . . . . . . . . . . . . . . Robots Rewired . | . . . . . . . . . . . . . . . . . Allies Hacked . | . . . . . . . . . . . . . . . . . Hacks Repelled . | . . . . . . . . . . . . . . . . . Allies | -11 -10 -10 -9 -9 -9 -9 -6 -6 -6 -6 -6 -6 -5 -5 -5 -5 -------- Run | Yrd Mat Min Mat Sto Rec Scr Fac Was Fac Low Low Dat Pro Fac Was Fac Total Allies 14 | . . 3 . 9 . . . . 1 . . . . . 1 . Largest Group 9 | . . 3 3 9 . . . . 1 . . . . . 1 . Highest-Rated Group 80 | . . 40 40 80 . . . . 10 . . . . . 31 . Highest-Rated Ally 31 | . . 16 16 16 . . . . 10 . . . . . 31 . Total Orders . | . . . . . . . . . . . . . . . . . Ally Attacks 133 | . . . 70 61 . . . . . . . . . . 2 . Total Damage 1106 | . . . 561 525 . . . . . . . . . . 20 . Kills 17 | . . . 9 8 . . . . . . . . . . . . Allies Corrupted . | . . . . . . . . . . . . . . . . . Allies Melted . | . . . . . . . . . . . . . . . . . Intel | -11 -10 -10 -9 -9 -9 -9 -6 -6 -6 -6 -6 -6 -5 -5 -5 -5 ------- Run | Yrd Mat Min Mat Sto Rec Scr Fac Was Fac Low Low Dat Pro Fac Was Fac Active Infowar (turns) 6457 | 4 318 243 1927 270 203 2539 186 33 430 117 69 52 66 . . . Sensors 572 | . . . . . . . 186 33 353 . . . . . . . Structural 3391 | . . . . . 203 2539 186 33 430 . . . . . . . Seismic 3106 | 4 318 243 1927 270 . . . . 40 117 69 52 66 . . . Cloaking 26 | . . . . . . . . . . 2 . 24 . . . . Jamming 1 | . . . . . . . . . . 1 . . . . . . Robot Analysis Total 163 | . 4 . 1 . . 7 . . . . . 151 . . . . Derelict Logs Recovered 3 | . . 1 . . . . . . . 1 1 . . . . . Drone Launches . | . . . . . . . . . . . . . . . . . Drone Recoveries . | . . . . . . . . . . . . . . . . . Exploration | -11 -10 -10 -9 -9 -9 -9 -6 -6 -6 -6 -6 -6 -5 -5 -5 -5 ------------- Run | Yrd Mat Min Mat Sto Rec Scr Fac Was Fac Low Low Dat Pro Fac Was Fac Turns Passed 9912 | 49 1039 243 1927 1253 1478 2539 186 33 487 120 69 52 139 199 53 46 Spaces Moved 7833 | 20 594 168 1029 527 662 1683 447 111 1047 309 202 97 340 371 135 91 Core 13 | . . . . 2 . . . . 10 . . . . 1 . . Treads 545 | 20 200 . 90 73 161 1 . . . . . . . . . . Legs . | . . . . . . . . . . . . . . . . . Wheels 4136 | . 394 168 939 452 501 1682 . . . . . . . . . . Hover 39 | . . . . . . . . . . . . . . . . 39 Flight 3100 | . . . . . . . 447 111 1037 309 202 97 340 370 135 52 Fastest Speed 23 | 160 95 115 145 145 145 130 23 27 27 34 34 34 37 37 37 40 Average Speed 106 | 160 129 131 153 167 208 144 26 27 30 34 34 34 37 37 38 48 Slowest Speed 1000 | 160 160 145 410 1000 400 330 27 27 450 34 34 37 37 200 40 60 Overloaded Moves . | . . . . . . . . . . . . . . . . . Propulsion Burnouts . | . . . . . . . . . . . . . . . . . Robots Hopped 9 | . . . . . . . . . 8 . . 1 . . . . Potential Cave-ins . | . . . . . . . . . . . . . . . . . Cave-ins Triggered . | . . . . . . . . . . . . . . . . . Exploration Rate (%) 56 | 2 97 46 96 73 87 91 21 86 46 52 38 78 59 14 70 4 Regions Visited 16 Branch Regions 8 Pre-discovered Areas 27 | . . . . . . . . . . 1 1 25 . . . . Known Exits Taken 8 | . 1 . 1 1 . . . . 1 1 1 1 1 . . . Unknown Exits Taken 4 | 1 . 1 . . 1 1 . . . . . . . . . . Scrap Searched 8 | . . 2 . . . 2 . . . 2 . . 2 . . . Spaces Dug 54 | . 11 . . . . . 10 . 17 . . . . 16 . . Terrain Destroyed 210 | . 86 . 50 18 3 . 10 . 17 . . . 10 16 . . Melee 32 | . . . . . . . 10 . 17 . . . . 5 . . Projectile 13 | . . . 4 6 3 . . . . . . . . . . . AOE 165 | . 86 . 46 12 . . . . . . . . 10 11 . . Terrain Rammed . | . . . . . . . . . . . . . . . . . Walls Destroyed . | . . . . . . . . . . . . . . . . . Machines Disabled . | . . . . . . . . . . . . . . . . . Actions | -11 -10 -10 -9 -9 -9 -9 -6 -6 -6 -6 -6 -6 -5 -5 -5 -5 --------- Run | Yrd Mat Min Mat Sto Rec Scr Fac Was Fac Low Low Dat Pro Fac Was Fac Total 8814 | 30 735 189 1223 756 710 1792 499 112 1151 325 201 104 351 409 135 92 Wait 335 | . 20 14 30 92 . 82 19 . 57 . . . 8 13 . . Move 7802 | 19 593 167 1028 526 661 1682 447 110 1031 308 201 94 339 371 134 91 Hop 8 | . . . . . . . . . 7 . . 1 . . . . Pick Up 74 | 2 17 4 18 11 1 8 2 . 4 1 . 2 1 3 . . Fast Attach 64 | 1 . . 16 19 8 1 . 1 9 4 . . 1 2 1 1 Attach 38 | 2 3 . 4 5 . 3 10 . 3 4 . . 1 3 . . Detach 11 | . . . 2 . 1 1 2 . 2 2 . . . 1 . . Swap 48 | . 25 1 9 3 2 4 2 1 1 . . . . . . . Drop 106 | 2 11 2 32 19 9 11 6 . 4 6 . 2 . 2 . . Fire 255 | 4 66 1 84 72 26 . . . . . . . 1 1 . . Melee 63 | . . . . 1 . . 11 . 33 . . 5 . 13 . . Ram 1 | . . . . . 1 . . . . . . . . . . . Kick . | . . . . . . . . . . . . . . . . . Crush 1 | . . . . . 1 . . . . . . . . . . . Escape Stasis 8 | . . . . 8 . . . . . . . . . . . . Rewire . | . . . . . . . . . . . . . . . . . Trap . | . . . . . . . . . . . . . . . . . Miscellaneous . | . . . . . . . . . . . . . . . . . Route ------- -11/Scrapyard -10/Materials (discovered 6 exits: *Mat x3 / *Min x2 / [*Sub]) -10/Mines -9/Materials (discovered 6 exits: [*Mat x3] / [*Min] / *Sto x2) -9/Storage (discovered 2 exits: [*Mat] / *Rec) -9/Recycling -9/Scraptown (discovered 2 exits: *Fac x2) -6/Factory -6/Waste -6/Factory (discovered 4 exits: *Fac x2 / *Low x2) -6/Lower Caves -6/Lower Caves -6/Data Miner -5/Proximity Caves -5/Factory (discovered 4 exits: Upp x2 / *Ext x2) -5/Waste -5/Factory History --------- Turn | Location | Event 13 | -11/Scrapyard | Discovered new exit (range 3) 50 | -11/Scrapyard | Entered Materials 214 | -10/Materials | Discovered new exit (range 5) 306 | -10/Materials | Build established: Mutant 417 | -10/Materials | Discovered new exit (range 11) 445 | -10/Materials | Discovered new exit (range 11) 710 | -10/Materials | Identified exit to Mines 790 | -10/Materials | Discovered new exit (range 16) 908 | -10/Materials | Discovered new exit (range 7) 1089 | -10/Materials | Entered Mines 1119 | -10/Mines | Received a Rocket Launcher from a helpful Derelict 1147 | -10/Mines | Discovered new exit (range 5) 1257 | -10/Mines | Assisted by bots powering up and referring to "LRC-V3" 1332 | -10/Mines | Entered Materials 1332 | -9/Materials | Accompanied by 3 allies 1332 | -9/Materials | Evolved 2 slots: Propulsion x1, Utility x1 1333 | -9/Materials | Identified exit to Storage 1515 | -9/Materials | Discovered new exit (range 16) 1722 | -9/Materials | Build established: Scavenger-Mutant 1873 | -9/Materials | Discovered new exit (range 8) 2044 | -9/Materials | Discovered new exit (range 15) 2109 | -9/Materials | Discovered exit to Storage (range 6) 2828 | -9/Materials | Build established: Mutant 2959 | -9/Materials | Discovered new exit (range 8) 3259 | -9/Materials | Entered Storage 3438 | -9/Storage | Identified exit to Recycling 3782 | -9/Storage | Discovered new exit (range 7) 4052 | -9/Storage | Assisted by bots powering up and referring to "LRC-V3" 4145 | -9/Storage | Garrison activated, responded to threat 4193 | -9/Storage | Lost 5 allies 4336 | -9/Storage | Lost 3 allies 4374 | -9/Storage | Repaired Arm. Treads 4459 | -9/Storage | First assault squad dispatched 4468 | -9/Storage | Used back door to open Recycling access 4512 | -9/Storage | Entered Recycling 4513 | -9/Recycling | Met a Zionite searching for Scraptown 5953 | -9/Recycling | Scanned before Scraplab entrance 5972 | -9/Recycling | Discovered new exit (range 11) 5976 | -9/Recycling | Entered Scraplab 5990 | -9/Recycling | Entered Scraptown 5990 | -9/Scraptown | System corruption cleaned by C-Scrubber 6016 | -9/Scraptown | Build established: Scavenger-Mutant 6282 | -9/Scraptown | Discovered new exit (range 3) 6382 | -9/Scraptown | Visited Cyclists 6674 | -9/Scraptown | Visited TADAMA 6724 | -9/Scraptown | Visited Red Mages 6829 | -9/Scraptown | Visited Comm Corps 6920 | -9/Scraptown | Visited Fellowship of the Rings 6955 | -9/Scraptown | Visited UFD Registry 6972 | -9/Scraptown | Registered with UFD as "Matrixshaft" 7071 | -9/Scraptown | Entered Cyclist Reading Room 7188 | -9/Scraptown | Visited Observation Area 7246 | -9/Scraptown | Visited Derelict Rescue Squad 7256 | -9/Scraptown | Found DRS Beacon 7283 | -9/Scraptown | Visited Junk Repository 7471 | -9/Scraptown | Visited Analyses Database 7523 | -9/Scraptown | Visited Infowarlord's Domain 7534 | -9/Scraptown | Found Exp. Signal Interpreter 7576 | -9/Scraptown | Visited Junk Repository 7680 | -9/Scraptown | Discovered new exit (range 5) 7735 | -9/Scraptown | Visited Scrapoid Pod Storage 7776 | -9/Scraptown | Visited Scrapoid Research Area 7822 | -9/Scraptown | Visited Curators Association 8186 | -9/Scraptown | Visited Supply Room 8228 | -9/Scraptown | Found Scrapoid Pod 8459 | -9/Scraptown | Met Optimus 8459 | -9/Scraptown | Accepted into 0bPrime 8529 | -9/Scraptown | Entered Factory 8529 | -6/Factory | Evolved 6 slots: Propulsion x3, Utility x3 8715 | -6/Factory | Sucked down chute 8715 | -6/Factory | Entered Waste 8726 | -6/Waste | Spotted C-40 Crusher 8726 | -6/Waste | Spotted C-40 Crusher 8727 | -6/Waste | Spotted C-40 Crusher 8729 | -6/Waste | Spotted C-40 Crusher 8729 | -6/Waste | Spotted C-40 Crusher 8730 | -6/Waste | EMP discharged 8742 | -6/Waste | Spotted C-40 Crusher 8743 | -6/Waste | Discovered new exit (range 14) 8748 | -6/Waste | Identified exit to Factory 8748 | -6/Waste | Entered Factory 8925 | -6/Factory | Identified exit to Lower Caves 8934 | -6/Factory | Discovered new exit (range 6) 9072 | -6/Factory | Discovered new exit (range 14) 9095 | -6/Factory | System corruption reached 10% 9166 | -6/Factory | Repaired VTOL Module 9235 | -6/Factory | Entered Lower Caves 9265 | -6/Lower Caves | Lost 5 parts (2n3u) 9305 | -6/Lower Caves | Core integrity fell below 50% 9337 | -6/Lower Caves | Discovered new exit (range 10) 9337 | -6/Lower Caves | Found DCF Scrap (11 items) 9351 | -6/Lower Caves | Identified exit to Lower Caves 9354 | -6/Lower Caves | Learned location of Extension (-5) 9355 | -6/Lower Caves | Entered another Lower Caves area 9364 | -6/Lower Caves | Attracted the attention of an 0b10 checkpoint 9422 | -6/Lower Caves | Discovered new exit (range 5) 9424 | -6/Lower Caves | Identified exit to Data Miner 9424 | -6/Lower Caves | Entered Data Miner 9424 | -6/Data Miner | Discovered new exit (range 6) 9431 | -6/Data Miner | Met Data Miner 9440 | -6/Data Miner | Learned location of Section 7 (-2) 9440 | -6/Data Miner | Acquired the access code to Warlord's prototype stash 9443 | -6/Data Miner | Received God Mode back door access code from Data Miner 9447 | -6/Data Miner | Destroyed Data Miner 9451 | -6/Data Miner | Found Prototype Hackware 9453 | -6/Data Miner | Found Prototype Hackware 9454 | -6/Data Miner | Interfaced with the Data Conduit 9476 | -6/Data Miner | Identified exit to Proximity Caves 9476 | -6/Data Miner | Entered Proximity Caves 9495 | -5/Proximity Caves | Spotter reported a threat 9495 | -5/Proximity Caves | Spotter reported a threat 9504 | -5/Proximity Caves | Lost 4 parts (1n1u2w) 9514 | -5/Proximity Caves | Build established: Hacker-Mutant 9548 | -5/Proximity Caves | Spotter reported a threat 9549 | -5/Proximity Caves | Found DCF Scrap (14 items) 9550 | -5/Proximity Caves | Core integrity fell below 20% 9560 | -5/Proximity Caves | Attracted the attention of an 0b10 outpost 9577 | -5/Proximity Caves | Spotter reported a threat 9601 | -5/Proximity Caves | Spotter reported a threat 9612 | -5/Proximity Caves | Discovered new exit (range 9) 9615 | -5/Proximity Caves | Identified exit to Factory 9615 | -5/Proximity Caves | Entered Factory 9615 | -5/Factory | Evolved 2 slots: Utility x2 9616 | -5/Factory | Loaded intel: 264 machine locations 9620 | -5/Factory | Identified Quantum Router 9621 | -5/Factory | Identified Deep Network Scanner 9625 | -5/Factory | Identified exit to Upper Caves 9625 | -5/Factory | Identified exit to Extension 9718 | -5/Factory | Garrison activated, responded to threat 9814 | -5/Factory | Sucked down chute 9814 | -5/Factory | Entered Waste 9815 | -5/Waste | Met a frightened Derelict 9829 | -5/Waste | EMP discharged 9835 | -5/Waste | Spotted C-40 Crusher 9839 | -5/Waste | Spotted C-40 Crusher 9846 | -5/Waste | Crushed by Compactor (1 part destroyed, 1 dropped) 9847 | -5/Waste | Spotted C-40 Crusher 9849 | -5/Waste | Spotted C-40 Crusher 9850 | -5/Waste | Spotted C-40 Crusher 9860 | -5/Waste | Discovered new exit (range 16) 9861 | -5/Waste | Spotted C-40 Crusher 9866 | -5/Waste | Identified exit to Factory 9867 | -5/Waste | Entered Factory 9868 | -5/Factory | Loaded intel: 273 machine locations 9909 | -5/Factory | Build established: Wizard-Mutant 9913 | -5/Factory | Self-destructed Last Messages --------------- 09870_ ALERT: Unauthorized use of fabrication network. Dispatching investigation squad. 09872_ U-05 Engineer works on Subcomponent Replicator. 09877_ C-30 ARC bursts open, deploying its payload. 09877_ G-67 Veteran unfolds itself. 09877_ G-50 Soldier unfolds itself. 09877_ ALERT: All DSF locations entering lockdown mode. 09877_ Critical hit (Burn: +37). 09878_ K-01 Serf collects debris. 09878_ U-05 Engineer works on Subcomponent Replicator. 09888_ Acquired Antigrav System. 09899_ W-25 Informer sends out distress signal. 09902_ Imp. Melee Analysis Suite destroyed. 09904_ Imp. Flight Unit destroyed. 09912_ Quantum Router destroyed. [Achievement: Just Browsing] Map ----- +----------------------------------------------------+ | ???????????????????? #?"?"?"????????????????????? | | ???????????????????? #?"?"?"????????????????????? | | ???????????????????? #?"?"?"????????????????????? | | ???????????????????? #?"?"?"????????????????????? | | ????????????????????# #?"?"?"????????????????????? | | ????????????????????# #??????????????????????????? | | ????????????????????# #??????????????????????????? | | ????????????????????# #??????????????????????????? | | ????????????????????# #??????????????????????????? | | ???????????????""""?# #??????????????????????????? | | ???????????????""""?# #???#########??????????????? | | ???????????????""""?#s#???# #?????????????? | | ???????????????""""?# ##### """ #?????????????? | | ???????????????""""?#ss # """ #?????????????? | | ???????????????""""?#s # """ #?????????????? | | "??????????????""""?# # #?????????????? | | "???????????????????# + """ #?????????????? | | "???????????????????# # """ #?????????????? | | ????????????????????# # """ #?????????????? | | ????????????????????# # #?????????????? | | ????????????????????# ###########????????????? | | ????????????????????# # #????????????? | | ???""???????????????# # """ #????????????? | | ???T"???????????????# + "Y" #????????????? | | ???""???????????????# # #????????????? | | ????????????????????# @# #????????????? | | ?????????????######## # """ #????????????? | | ?????????? # """ #????????????? | | ?????????? ^^ # """ #????????????? | | ???????????""" """g""" ###########????????????? | | ?????????""""" """"" "R" #??????????????????????? | | ?????????""""" """""g" " #??????????????????????? | | ??????? #??????????????????????? | | ???????????""" """ #??????????????????????? | | ??""??#??""""" """""g g ####???????????????????? | | ??"""?# """"" """"" """#???????????????????? | | ???S"?# """#???????????????????? | | ??"""?# """ F"#???????????????????? | | ??"""?# """"" "" ""#???????????????????? | | ??????# """"" """ ####???????????????????? | | ###+### ########???????????????? | | """ #???????????????? | | """"" #???????????????? | | !! """"" #???????????????? | | !! #???????????????? | | "%" !! #???????????????? | | ????#############+########## #???????????????? | | ??????????????? ???????# #???????????????? | | ????????????? ?????#######???????????????? | | ???????????# ?????????????????????????? | +----------------------------------------------------+ Best States ------------- Heat Dissipation 40 Energy Generation 16 Energy Capacity 290 Matter Stores 300 Matter Capacity 300 Sight Range 16 Robot Scan Range 15 Terrain Scan Density 10 Cloak Strength 3 Armor Coverage 375 Power Shielding 66 Propulsion Shielding 66 Evasion (%) 64 Melee Accuracy 6 Recoil Reduction 3 Offensive Hacking 59 Defensive Hacking 37 Item Schematics ----------------- Sensor Array | -9/Materials | Scanalyzed Combat Drone Bay | -6/Data Miner | Free Lgt. Regenerative Plating | -6/Data Miner | Free Imp. Energy Well | -6/Data Miner | Free Imp. Gyrokinetic Inverter | -6/Data Miner | Free Imp. System Guard | -6/Data Miner | Free Disruptor Cannon | -6/Data Miner | Free Hvy. Armored Exoskeleton | -6/Data Miner | Free Quantum Rifle | -6/Data Miner | Free HERF Cannon | -6/Data Miner | Free Hvy. Proton Missile Launcher | -6/Data Miner | Free Cld. Nuclear Pulse Thruster | -6/Data Miner | Free Robot Schematics ------------------ I-47 Archangel | -6/Data Miner | Free S-27 Virus | -6/Data Miner | Free P-60 Hacker | -6/Data Miner | Free B-48 Gladiator | -6/Data Miner | Free Fabricated ------------ Nothing Repaired ---------- Arm. Treads | 15% | -9/Storage VTOL Module | 20% | -6/Factory Alien Tech Used ----------------- None Achievements -------------- Just Browsing Unlimited Data Challenges ------------ None Game ------ Seed FissionInsulatedKit Manual? 0 Play Time 02:10:08 Cumulative 55.0 hours Start 2025.07.26 @ 19:12:01 End 2025.07.27 @ 00:01:28 Sessions 3 Manual Loads 0 Difficulty Rogue Special Mode None Game No. 23 Rogue 23 Adventurer 0 Explorer 0 Win Type - Total 3 Types 2/0/1/0/0/0/0/0/0/0 Lore% 49 Gallery% 25 Achievement% 38 Wizard Run 0 Options --------- Layout 1 ASCII 0 Keyboard 0 Movement Mouse Keybinds 0 Fullscreen 1 Font 24/Smallcaps Map View 50x35 Zoom Use 0% Tactical HUD 1 Map Filters NONE Filters NONE Steam 1 RUN: 87bef578-dab8-4e35-8932-87fa40634e8b